fUSD/lending_fUSD_20240929
["ID","MTS","AMOUNT","RATE_DAILY","PERIOD"]
[339499023,1727641833236,-355.81495446,0.00010999,2]
[339499024,1727641833245,-500.0,0.00010999,2]
[339499025,1727641833254,-227.12938384,0.00010999,2]
[339499026,1727641833263,-500.0,0.00010999,2]
[339499027,1727641833272,-423.85426352,0.00010999,2]
[339499028,1727641833281,-500.0,0.00010999,2]
[339499029,1727641833290,-500.0,0.00010999,2]
[339499030,1727641833299,-500.0,0.00010999,2]
[339499031,1727641833308,-500.0,0.00010999,2]
[339499032,1727641833317,-519.0,0.00011,2]
[339499033,1727641833326,-186926.70234971,0.00011,2]
[339499034,1727641833338,-470.60202167,0.00011,2]
[339499035,1727641833349,-446.45853724,0.00011,2]
[339499036,1727641833359,-569.99999994,0.00011,2]
[339499037,1727641833370,-351.899999,0.00011,2]
[339499038,1727641833391,-56726.87052297,0.00011,2]
[339499039,1727641833402,-427485.0175141,0.00011,2]
[339499040,1727641833413,-1800.0,0.00011,2]
[339499041,1727641833424,-481.470523,0.00011,2]
[339499042,1727641833435,-2299.76847704,0.00011,2]
[339499043,1727641833448,-608.7538748,0.00011,2]
[339499044,1727641833459,-30389.27840015,0.00011,2]
[339499045,1727641833470,-2841.59974573,0.00011,2]
[339499046,1727641833481,-766.71121484,0.00011,2]
[339499047,1727641833504,-218665.61916361,0.00011,2]
[339499048,1727641833531,-3875.39850001,0.00011,2]
[339499049,1727641833540,-1420.57975073,0.00011,2]
[339499051,1727641838382,-558.0,0.0001097,2]
[339499052,1727641838392,-517.49637378,0.0001097,2]
[339499053,1727641838404,-292.50362622,0.0001097,2]
[339499054,1727641838414,-237.47651731,0.0001099,2]
[339499055,1727641838423,-18551.37845241,0.00011,2]
[339499056,1727641838434,-16183.61727271,0.00011,2]
[339499057,1727641838461,-397.33095442,0.00011,2]
[339499058,1727641838473,-1470.99385786,0.00011,2]
[339499059,1727641838485,-999.83499872,0.00011,2]
[339499060,1727641838496,-1840.08345201,0.00011,2]
[339499061,1727641838507,-29166.63838452,0.00011,2]
[339499062,1727641838541,-2383.05429346,0.00011,2]
[339499063,1727641838552,-577.87520853,0.00011,2]
[339499064,1727641838564,-544.38170658,0.00011,2]
[339499065,1727641838583,-4678.43151661,0.00011,2]
[339499066,1727641838594,-4953.86494379,0.00011,2]
[339499067,1727641838791,-1111.14398307,0.00011,2]
[339499068,1727641838802,-13929.74214198,0.00011,2]
[339499083,1727641840612,-300.0,0.00011,2]
[339499084,1727641840623,-377.74581237,0.00011,2]
[339499085,1727641840634,-657.41641553,0.00011,2]
[339499086,1727641840649,-24924.90000006,0.00011,2]
[339499087,1727641840660,-22194.97216554,0.00011,2]
[339499088,1727641840687,-425.0,0.00011,2]
[339499089,1727641840702,-141366.67604883,0.00011,2]
[339499090,1727641840712,-704.74178858,0.00011,2]
[339499091,1727641840723,-440.96864,0.00011,2]
[339499092,1727641840734,-1765.19999999,0.00011,2]
[339499093,1727641840744,-485.18718183,0.00011,2]
[339499094,1727641840761,-594.39655094,0.00011,2]
[339499097,1727641843361,-21409.91821442,0.00011,2]
[339499099,1727641843373,-1282.870548,0.00011,2]
[339499101,1727641843384,-258.76088739,0.00011,2]
[339499104,1727641843405,-273257.44433454,0.00011,2]
[339499105,1727641843415,-1933228.01599794,0.00011,2]
[339499106,1727641843426,-6619.57676662,0.00011,2]
[339499107,1727641843451,-5409.56907719,0.00011,2]
[339499108,1727641843462,-5016.91366107,0.00011,2]
[339499109,1727641843474,-500.0,0.00011,2]
[339499110,1727641843620,-1008.098861,0.00011,2]
[339499111,1727641843631,-16663.41501804,0.00011,2]
[339499115,1727641846224,-300.0,0.000109,2]
[339499116,1727641846237,-24.63891237,0.000109,2]
[339499117,1727641846246,-298.25268763,0.00011,2]
[339499118,1727641846257,-6271.4,0.00011,2]
[339499119,1727641846268,-1143.278,0.00011,2]
[339499120,1727641846299,-859.71593629,0.00011,2]
[339499121,1727641846361,-354921.36572819,0.00011,2]
[339499122,1727641846372,-3001.3,0.00011,2]
[339499123,1727641846420,-3274.01606386,0.00011,2]
[339499124,1727641846432,-263.574,0.00011,2]
[339499125,1727641846444,-326.081,0.00011,2]
[339499126,1727641846455,-267.05,0.00011,2]
[339499127,1727641846466,-24060.66370396,0.00011,2]
[339499128,1727641846477,-16744.559,0.00011,2]
[339499129,1727641846488,-3490.9987,0.00011,2]
[339499130,1727641846499,-2366.29051615,0.00011,2]
[339499131,1727641846515,-5686.35000001,0.00011,2]
[339499132,1727641846526,-465.20613408,0.00011,2]
[339499133,1727641846537,-2874.31906734,0.00011,2]
[339499134,1727641846553,-1253.16529958,0.00011,2]
[339499135,1727641846564,-401.21832325,0.00011,2]
[339499136,1727641864185,336.13,8.627e-05,2]
[339499147,1727642057723,171.17,9.972e-05,2]
[339499148,1727642201285,424.64,9.953e-05,2]
[339499149,1727642240341,242.95,9.953e-05,2]
[339499150,1727642306048,250.0,9.94e-05,2]
[339499151,1727642457302,347.19,8.219e-05,2]
[339499153,1727642534071,250.0,9.932e-05,2]
[339499154,1727642560250,171.33,9.932e-05,2]
[339499155,1727642583832,23900.0,9.932e-05,2]
[339499156,1727642594264,1000.0,9.947e-05,2]
[339499157,1727642603725,171.17,9.947e-05,2]
[339499158,1727642678192,150.0,9.991e-05,2]
[339499159,1727642756057,432.2,9.985e-05,2]
[339499168,1727643031905,-250.0,9.997e-05,2]
[339499169,1727643031915,-660.67391534,0.0001,2]
[339499170,1727643031926,-389.32608466,0.0001,2]
[339499171,1727643031936,-169.35,0.00010003,2]
[339499172,1727643031945,-78.11644945,0.00010058,2]
[339499173,1727643031956,-77.32355055,0.00010058,2]
[339499174,1727643031966,-1166.76629037,0.00010421,2]
[339499175,1727643031976,-640.91615652,0.00010421,2]
[339499176,1727643031985,-347.19,0.00010473,2]
[339499177,1727643031995,-150.0,0.00010603,2]
[339499178,1727643032004,-168.886052,0.0001063,2]
[339499179,1727643032013,-754.03,0.000107,2]
[339499180,1727643032023,-751.19,0.000107,2]
[339499181,1727643032032,-518.16,0.000107,2]
[339499182,1727643032041,-3071.8389,0.00010894,2]
[339499183,1727643032051,-1000.0,0.00010899,2]
[339499184,1727643032060,-499.99,0.00010899,2]
[339499185,1727643032070,-150.0,0.00010899,2]
[339499186,1727643032079,-9993.70905009,0.000109,2]
[339499187,1727643032090,-501.23538144,0.000109,2]
[339499188,1727643032101,-2903.71306986,0.000109,2]
[339499189,1727643032112,-1006.34729861,0.000109,2]
[339499190,1727643032121,-500.0,0.000109,2]
[339499191,1727643032130,-500.6895,0.000109,2]
[339499192,1727643032139,-1414.52165306,0.000109,2]
[339499193,1727643032149,-2228.53585342,0.000109,2]
[339499194,1727643032161,-3042.05019352,0.000109,2]
[339499195,1727643032170,-2357.94980648,0.000109,2]
[339499196,1727643032181,-2314.71019352,0.000109,2]
[339499197,1727643032189,-168.22875623,0.000109,2]
[339499198,1727643032198,-500.0,0.00010912,2]
[339499199,1727643032207,-364.894,0.00010958,2]
[339499200,1727643032217,-500.0,0.00010959,2]
[339499201,1727643032226,-2000.0,0.00010959,2]
[339499202,1727643032238,-500.0,0.00010959,2]
[339499203,1727643032247,-200.0,0.00010959,2]
[339499204,1727643032256,-161.75,0.00010959,2]
[339499205,1727643032265,-208.44,0.00010959,2]
[339499206,1727643032275,-2000.0,0.00010959,2]
[339499207,1727643032286,-810.0,0.0001097,2]
[339499208,1727643032296,-150.0,0.0001097,2]
[339499209,1727643032305,-150.0,0.0001097,2]
[339499210,1727643032318,-500.0,0.00010973,2]
[339499211,1727643032328,-1507.12,0.00010986,2]
[339499212,1727643032336,-852.33,0.00010986,2]
[339499213,1727643032346,-731.1625842,0.00010995,2]
[339499214,1727643032354,-38445.4966199,0.00010995,2]
[339499215,1727643032364,-500.0,0.00010997,2]
[339499216,1727643032373,-570.54,0.00010997,2]
[339499217,1727643032382,-1495.78307067,0.00010999,3]
[339499218,1727643032391,-517.0,0.00011,2]
[339499219,1727643032401,-661541.72951956,0.00011,2]
[339499220,1727643032410,-123356.92392178,0.00011,2]
[339499221,1727643032422,-56186.34845522,0.00011,2]
[339499222,1727643032448,-6683.26958659,0.00011,2]
[339499223,1727643032459,-1339.32568212,0.00011,2]
[339499224,1727643032470,-4036.74748476,0.00011,2]
[339499225,1727643032481,-474.46635641,0.00011,2]
[339499226,1727643032492,-72374.20215191,0.00011,2]
[339499227,1727643032502,-2712.16487565,0.00011,2]
[339499228,1727643032580,-315.0,0.00011,2]
[339499229,1727643032590,-1783.20741457,0.00011,2]
[339499230,1727643032601,-1697.0288294,0.00011,2]
[339499231,1727643032611,-7453.55953814,0.00011,2]
[339499232,1727643032622,-787.72537109,0.00011,2]
[339499233,1727643032633,-809.14403611,0.00011,2]
[339499234,1727643032643,-497.48514,0.00011,2]
[339499235,1727643032654,-1594.44501813,0.00011,2]
[339499236,1727643032665,-14664.77099999,0.00011,2]
[339499237,1727643032675,-2408.87747833,0.00011,2]
[339499238,1727643032690,-112093.87437975,0.00011,2]
[339499239,1727643032699,-359381.15285228,0.00011,2]
[339499240,1727643032711,-2862.03116841,0.00011,2]
[339499241,1727643032726,-1381.95190557,0.00011,2]
[339499242,1727643032737,-1723.78193149,0.00011,2]
[339499244,1727643037556,-256.5492528,0.000109,2]
[339499245,1727643037567,-252.61864082,0.00011,2]
[339499246,1727643037578,-1019.83248483,0.00011,2]
[339499248,1727643037609,-312.22017178,0.00011,2]
[339499249,1727643037621,-62186.5445998,0.00011,2]
[339499250,1727643037668,-5971.4553313,0.00010995,2]
[339499251,1727643037678,-634323.84805838,0.00011,2]
[339499252,1727643037689,-1080.68345125,0.00011,2]
[339499253,1727643037729,-618.74932003,0.00011,2]
[339499254,1727643037783,-393.01182328,0.00011,2]
[339499255,1727643037794,-18943.76812934,0.00011,2]
[339499256,1727643037806,-8208.53520196,0.00011,2]
[339499257,1727643037846,-1035.7815816,0.00011,2]
[339499258,1727643037857,-1959.02575318,0.00011,2]
[339499259,1727643037869,-7969.17193469,0.00011,2]
[339499260,1727643037882,-4235.85334958,0.00011,2]
[339499261,1727643037893,-6214.73959699,0.00011,2]
[339499269,1727643039548,-572.19529931,0.00011,2]
[339499270,1727643039559,-478.75263346,0.00011,2]
[339499271,1727643039571,-476.45777715,0.00011,2]
[339499272,1727643039679,-304.33735203,0.00011,2]
[339499273,1727643039691,-1324.73356299,0.00011,2]
[339499274,1727643039701,-602.7973578,0.00011,2]
[339499275,1727643039713,-5142.19115269,0.00011,2]
[339499276,1727643039725,-13471.89695095,0.00011,2]
[339499277,1727643039740,-1663.5002,0.00011,2]
[339499278,1727643039773,-6896.22910835,0.00011,2]
[339499279,1727643039784,-2303.5,0.00011,2]
[339499280,1727643039796,-1986.34492326,0.00011,2]
[339499281,1727643039826,-475127.56990678,0.00011,2]
[339499282,1727643039837,-889.49999995,0.00011,2]
[339499283,1727643039848,-998.56,0.00011,2]
[339499284,1727643039859,-400.075,0.00011,2]
[339499285,1727643039870,-2266.00000008,0.00011,2]
[339499286,1727643039881,-701.66503495,0.00011,2]
[339499287,1727643039893,-1787.55805162,0.00011,2]
[339499288,1727643039931,-33598.95918226,0.00011,2]
[339499289,1727643039942,-38721.42066455,0.00011,2]
[339499290,1727643039953,-83348.20398924,0.00011,2]
[339499291,1727643039964,-6823.92594344,0.00011,2]
[339499292,1727643039981,-325.579,0.00011,2]
[339499293,1727643039992,-351.91594489,0.00011,2]
[339499294,1727643040003,-621.51461131,0.00011,2]
[339499295,1727643040015,-660.549,0.00011,2]
[339499296,1727643040026,-844.59940541,0.00011,2]
[339499297,1727643040038,-20776.22156443,0.00011,2]
[339499306,1727643042673,-1494504.14500414,0.00011,2]
[339499307,1727643042682,-1088.0,0.00011,2]
[339499308,1727643042691,-150.0,0.00011,2]
[339499309,1727643042700,-1000.0,0.00011,2]
[339499310,1727643042709,-1000.0,0.00011,2]
[339499311,1727643042719,-1000.0,0.00011,2]
[339499312,1727643042730,-1000.0,0.00011,2]
[339499313,1727643042739,-1000.0,0.00011,2]
[339499314,1727643042748,-1000.0,0.00011,2]
[339499315,1727643042758,-1000.0,0.00011,2]
[339499316,1727643042767,-1000.0,0.00011,2]
[339499317,1727643042776,-1000.0,0.00011,2]
[339499318,1727643042785,-1000.0,0.00011,2]
[339499319,1727643042794,-1000.0,0.00011,2]
[339499320,1727643042803,-623.11257517,0.00011,2]
[339499321,1727643042815,-500.2477321,0.00011,2]
[339499322,1727643042824,-1631.9525288,0.00011,2]
[339499323,1727643042834,-384604.23464981,0.00011,2]
[339499324,1727643042843,-31043.0,0.00011,2]
[339499325,1727643042852,-283.0,0.00011,2]
[339499326,1727643042862,-283.0,0.00011,2]
[339499327,1727643042871,-283.0,0.00011,2]
[339499328,1727643042880,-283.0,0.00011,2]
[339499329,1727643042889,-283.0,0.00011,2]
[339499330,1727643042898,-283.0,0.00011,2]
[339499331,1727643042907,-283.0,0.00011,2]
[339499332,1727643042916,-283.0,0.00011,2]
[339499333,1727643042926,-283.0,0.00011,2]
[339499334,1727643042937,-283.0,0.00011,2]
[339499335,1727643042946,-283.0,0.00011,2]
[339499336,1727643042955,-186779.80064632,0.00011,2]
[339499337,1727643042965,-20490.0,0.00011,2]
[339499338,1727643042975,-220.99998,0.00011,2]
[339499339,1727643042983,-158.863136,0.00011,2]
[339499340,1727643042994,-158.863136,0.00011,2]
[339499341,1727643043003,-158.863136,0.00011,2]
[339499342,1727643043013,-158.863136,0.00011,2]
[339499343,1727643043023,-199.2,0.00011,2]
[339499344,1727643043034,-215.0,0.00011,2]
[339499345,1727643043043,-215.0,0.00011,2]
[339499346,1727643043054,-215.0,0.00011,2]
[339499347,1727643043065,-201.0,0.00011,2]
[339499348,1727643043075,-201.0,0.00011,2]
[339499349,1727643043087,-201.0,0.00011,2]
[339499350,1727643043098,-201.0,0.00011,2]
[339499353,1727643043320,-201.0,0.00011,2]
[339499354,1727643043332,-201.0,0.00011,2]
[339499355,1727643043341,-201.0,0.00011,2]
[339499356,1727643043351,-201.0,0.00011,2]
[339499357,1727643043360,-201.0,0.00011,2]
[339499358,1727643043370,-201.0,0.00011,2]
[339499359,1727643043379,-201.0,0.00011,2]
[339499360,1727643043389,-201.0,0.00011,2]
[339499361,1727643043398,-201.0,0.00011,2]
[339499362,1727643043407,-201.0,0.00011,2]
[339499363,1727643043416,-201.0,0.00011,2]
[339499364,1727643043425,-201.0,0.00011,2]
[339499365,1727643043435,-201.0,0.00011,2]
[339499366,1727643043443,-201.0,0.00011,2]
[339499367,1727643043453,-626.0,0.00011,2]
[339499368,1727643043461,-626.0,0.00011,2]
[339499369,1727643043471,-626.0,0.00011,2]
[339499370,1727643043481,-626.0,0.00011,2]
[339499371,1727643043490,-626.0,0.00011,2]
[339499372,1727643043499,-626.0,0.00011,2]
[339499373,1727643043508,-626.0,0.00011,2]
[339499374,1727643043517,-626.0,0.00011,2]
[339499375,1727643043526,-626.0,0.00011,2]
[339499376,1727643043535,-626.0,0.00011,2]
[339499377,1727643043544,-626.0,0.00011,2]
[339499378,1727643043553,-626.0,0.00011,2]
[339499379,1727643043562,-626.0,0.00011,2]
[339499380,1727643043571,-626.0,0.00011,2]
[339499381,1727643043580,-626.0,0.00011,2]
[339499382,1727643043590,-626.0,0.00011,2]
[339499383,1727643043598,-626.0,0.00011,2]
[339499384,1727643043608,-626.0,0.00011,2]
[339499385,1727643043618,-626.0,0.00011,2]
[339499386,1727643043628,-626.0,0.00011,2]
[339499387,1727643043637,-150.0,0.00011,2]
[339499388,1727643043647,-5252.60407297,0.00011,2]
[339499389,1727643043663,-262064.26021333,0.00011,2]
[339499390,1727643043672,-1000.0,0.00011,2]
[339499391,1727643043684,-1000.0,0.00011,2]
[339499392,1727643043694,-1000.0,0.00011,2]
[339499393,1727643043704,-1000.0,0.00011,2]
[339499394,1727643043715,-1000.0,0.00011,2]
[339499395,1727643043725,-1000.0,0.00011,2]
[339499396,1727643043733,-1000.0,0.00011,2]
[339499397,1727643043742,-1000.0,0.00011,2]
[339499398,1727643043751,-1000.0,0.00011,2]
[339499399,1727643043760,-1000.0,0.00011,2]
[339499400,1727643043769,-1000.0,0.00011,2]
[339499401,1727643043778,-1000.0,0.00011,2]
[339499402,1727643043787,-1000.0,0.00011,2]
[339499403,1727643043796,-1000.0,0.00011,2]
[339499404,1727643043805,-1000.0,0.00011,2]
[339499405,1727643043815,-1000.0,0.00011,2]
[339499406,1727643043824,-1000.0,0.00011,2]
[339499407,1727643043832,-1000.0,0.00011,2]
[339499408,1727643043841,-1000.0,0.00011,2]
[339499409,1727643043851,-1000.0,0.00011,2]
[339499410,1727643043859,-1000.0,0.00011,2]
[339499411,1727643043868,-1000.0,0.00011,2]
[339499412,1727643043877,-151.0,0.00011,2]
[339499413,1727643043886,-151.0,0.00011,2]
[339499414,1727643043895,-1000.0,0.00011,2]
[339499415,1727643043904,-1000.0,0.00011,2]
[339499416,1727643043913,-1000.0,0.00011,2]
[339499417,1727643043922,-1000.0,0.00011,2]
[339499418,1727643043931,-1000.0,0.00011,2]
[339499419,1727643043939,-1000.0,0.00011,2]
[339499420,1727643043948,-1000.0,0.00011,2]
[339499421,1727643043958,-1000.0,0.00011,2]
[339499422,1727643043967,-1000.0,0.00011,2]
[339499423,1727643043976,-1000.0,0.00011,2]
[339499424,1727643043986,-1000.0,0.00011,2]
[339499425,1727643043996,-1000.0,0.00011,2]
[339499426,1727643044005,-1000.0,0.00011,2]
[339499427,1727643044015,-1000.0,0.00011,2]
[339499428,1727643044024,-1000.0,0.00011,2]
[339499429,1727643044034,-2000.0,0.00011,2]
[339499430,1727643044044,-1000.0,0.00011,2]
[339499431,1727643044053,-1000.0,0.00011,2]
[339499432,1727643044062,-1000.0,0.00011,2]
[339499433,1727643044071,-200.0,0.00011,2]
[339499434,1727643044080,-1000.0,0.00011,2]
[339499435,1727643044090,-1000.0,0.00011,2]
[339499436,1727643044099,-1000.0,0.00011,2]
[339499437,1727643044108,-1000.0,0.00011,2]
[339499438,1727643044117,-1000.0,0.00011,2]
[339499439,1727643044127,-1000.0,0.00011,2]
[339499440,1727643044136,-1000.0,0.00011,2]
[339499441,1727643044145,-1000.0,0.00011,2]
[339499442,1727643044154,-1000.0,0.00011,2]
[339499443,1727643044164,-1000.0,0.00011,2]
[339499444,1727643044173,-1000.0,0.00011,2]
[339499445,1727643044183,-1000.0,0.00011,2]
[339499446,1727643044192,-1000.0,0.00011,2]
[339499447,1727643044201,-1000.0,0.00011,2]
[339499448,1727643044211,-1000.0,0.00011,2]
[339499449,1727643044220,-1000.0,0.00011,2]
[339499450,1727643044230,-1000.0,0.00011,2]
[339499451,1727643044241,-1016.0,0.00011,2]
[339499452,1727643044252,-2000.0,0.00011,2]
[339499453,1727643044261,-200.0,0.00011,2]
[339499454,1727643044271,-303.3,0.00011,2]
[339499455,1727643044280,-1010.34,0.00011,2]
[339499456,1727643044290,-2000.0,0.00011,2]
[339499457,1727643044300,-200.0,0.00011,2]
[339499458,1727643044310,-300.0,0.00011,2]
[339499459,1727643044320,-500.0,0.00011,2]
[339499460,1727643044329,-2783.0,0.00011,2]
[339499461,1727643044338,-1038.0,0.00011,2]
[339499462,1727643044347,-1000.0,0.00011,2]
[339499463,1727643044356,-1000.0,0.00011,2]
[339499464,1727643044366,-1000.0,0.00011,2]
[339499465,1727643044375,-1000.0,0.00011,2]
[339499466,1727643044384,-1000.0,0.00011,2]
[339499467,1727643044394,-1000.0,0.00011,2]
[339499468,1727643044403,-1000.0,0.00011,2]
[339499469,1727643044412,-1000.0,0.00011,2]
[339499470,1727643044422,-1000.0,0.00011,2]
[339499471,1727643044431,-1000.0,0.00011,2]
[339499472,1727643044441,-1000.0,0.00011,2]
[339499473,1727643044450,-1000.0,0.00011,2]
[339499474,1727643044460,-1000.0,0.00011,2]
[339499475,1727643044469,-1000.0,0.00011,2]
[339499476,1727643044480,-1000.0,0.00011,2]
[339499477,1727643044489,-2000.0,0.00011,2]
[339499478,1727643044499,-200.0,0.00011,2]
[339499479,1727643044508,-302.99,0.00011,2]
[339499480,1727643044517,-302.99,0.00011,2]
[339499481,1727643044527,-302.99,0.00011,2]
[339499482,1727643044538,-302.99,0.00011,2]
[339499483,1727643044547,-302.99,0.00011,2]
[339499484,1727643044557,-302.99,0.00011,2]
[339499485,1727643044566,-302.99,0.00011,2]
[339499486,1727643044576,-302.99,0.00011,2]
[339499487,1727643044585,-302.99,0.00011,2]
[339499488,1727643044594,-302.99,0.00011,2]
[339499489,1727643044604,-302.99,0.00011,2]
[339499490,1727643044613,-302.99,0.00011,2]
[339499491,1727643044623,-302.99,0.00011,2]
[339499492,1727643044632,-302.99,0.00011,2]
[339499493,1727643044641,-302.99,0.00011,2]
[339499494,1727643044651,-302.99,0.00011,2]
[339499495,1727643044660,-302.99,0.00011,2]
[339499496,1727643044669,-302.99,0.00011,2]
[339499497,1727643044678,-302.99,0.00011,2]
[339499498,1727643044688,-302.99,0.00011,2]
[339499499,1727643044697,-3887.6787563,0.00011003,2]
[339499500,1727643044706,-3710.8938084,0.00011003,2]
[339499501,1727643044715,-4099.3381091,0.00011011,2]
[339499502,1727643044726,-500.0,0.00011041,2]
[339499503,1727643044745,-2783.0,0.00011041,2]
[339499504,1727643044754,-1038.0,0.00011041,2]
[339499505,1727643044764,-288.0,0.00011043,2]
[339499506,1727643044773,-500.0,0.00011082,2]
[339499507,1727643044783,-2783.0,0.00011082,2]
[339499508,1727643044792,-1038.0,0.00011082,2]
[339499509,1727643044804,-1075.41,0.000111,2]
[339499510,1727643044814,-288.0,0.00011107,2]
[339499511,1727643044823,-2000.0,0.0001111,2]
[339499512,1727643044832,-200.0,0.0001111,2]
[339499513,1727643044843,-2000.0,0.0001111,2]
[339499514,1727643044852,-200.0,0.0001111,2]
[339499515,1727643044862,-2000.0,0.0001111,2]
[339499516,1727643044871,-200.0,0.0001111,2]
[339499517,1727643044880,-2000.0,0.0001111,2]
[339499518,1727643044890,-200.0,0.0001111,2]
[339499519,1727643044901,-288.0,0.00011121,2]
[339499520,1727643044910,-2783.0,0.00011123,2]
[339499521,1727643044919,-1038.0,0.00011123,2]
[339499522,1727643044928,-199.923539,0.00011161,2]
[339499523,1727643044938,-168.886052,0.00011161,2]
[339499524,1727643044947,-2783.0,0.00011164,2]
[339499525,1727643044957,-1038.0,0.00011164,2]
[339499526,1727643044966,-1000.0,0.00011191,2]
[339499527,1727643044979,-424.64,0.00011198,2]
[339499528,1727643044988,-2783.0,0.00011205,2]
[339499529,1727643044998,-1038.0,0.00011205,2]
[339499530,1727643045007,-2000.0,0.00011221,2]
[339499531,1727643045016,-200.0,0.00011221,2]
[339499532,1727643045026,-2000.0,0.00011221,2]
[339499533,1727643045035,-200.0,0.00011221,2]
[339499534,1727643045043,-2000.0,0.00011221,2]
[339499535,1727643045053,-200.0,0.00011221,2]
[339499536,1727643045062,-200.0,0.00011221,2]
[339499537,1727643045072,-432.2,0.00011233,2]
[339499538,1727643045081,-301.17,0.00011241,2]
[339499539,1727643045090,-2783.0,0.00011247,2]
[339499540,1727643045099,-1038.0,0.00011247,2]
[339499541,1727643045109,-2783.0,0.00011288,2]
[339499542,1727643045118,-1038.0,0.00011288,2]
[339499543,1727643045128,-156.0,0.00011307,2]
[339499544,1727643045137,-2783.0,0.00011329,2]
[339499545,1727643045146,-1038.0,0.00011329,2]
[339499546,1727643045155,-2000.0,0.00011333,2]
[339499547,1727643045164,-200.0,0.00011333,2]
[339499548,1727643045173,-2000.0,0.00011333,2]
[339499550,1727643045182,-200.0,0.00011333,2]
[339499551,1727643045191,-2000.0,0.00011333,2]
[339499552,1727643045200,-200.0,0.00011333,2]
[339499553,1727643045209,-200.0,0.00011333,2]
[339499554,1727643045218,-2783.0,0.0001137,2]
[339499555,1727643045229,-1038.0,0.0001137,2]
[339499556,1727643045240,-415.30794691,0.0001141,2]
[339499557,1727643045249,-2783.0,0.00011411,2]
[339499558,1727643045258,-1038.0,0.00011411,2]
[339499559,1727643045267,-200.0,0.00011447,2]
[339499560,1727643045276,-2000.0,0.00011447,2]
[339499561,1727643045286,-200.0,0.00011447,2]
[339499562,1727643045295,-233.77408993,0.00011447,2]
[339499563,1727643045304,-200.0,0.00011447,2]
[339499564,1727643045314,-200.0,0.00011447,2]
[339499565,1727643045323,-2783.0,0.00011452,2]
[339499566,1727643045332,-1038.0,0.00011452,2]
[339499567,1727643045342,-2783.0,0.00011493,2]
[339499568,1727643045351,-1038.0,0.00011493,2]
[339499569,1727643045360,-300.0,0.000115,2]
[339499570,1727643045370,-2783.0,0.00011534,2]
[339499571,1727643045379,-1038.0,0.00011534,2]
[339499572,1727643045389,-438.774,0.00011549,2]
[339499573,1727643045399,-438.774,0.00011549,2]
[339499574,1727643045408,-438.774,0.00011549,2]
[339499575,1727643045417,-438.774,0.00011549,2]
[339499576,1727643045426,-438.774,0.00011549,2]
[339499577,1727643045435,-438.774,0.00011549,2]
[339499578,1727643045444,-438.774,0.00011549,2]
[339499579,1727643045453,-438.774,0.00011549,2]
[339499580,1727643045463,-438.774,0.00011549,2]
[339499581,1727643045475,-438.774,0.00011549,2]
[339499582,1727643045484,-2783.0,0.00011575,2]
[339499583,1727643045494,-1038.0,0.00011575,2]
[339499584,1727643045503,-2783.0,0.00011616,2]
[339499585,1727643045511,-1038.0,0.00011616,2]